bitfinex-derivatives/quotes_ETHF0:USTF0_20251028
["timestamp","ask_amount","ask_price","bid_price","bid_amount"]
[1761690325183,0.8125,3990.6,3990.5,4.7241]
[1761690326087,0.1356,3991.0,3990.5,4.7241]
[1761690326088,0.89512355,3991.5,3991.4,0.7613]
[1761690326283,1.15742686,3991.5,3991.4,0.7613]
[1761690326480,1.39142686,3991.5,3991.4,0.7613]
[1761690328175,0.79551262,3991.5,3991.4,0.7613]
[1761690331089,0.92571262,3991.5,3991.4,0.7613]
[1761690332985,0.7933,3991.3,3991.2,0.2142]
[1761690333178,0.7933,3991.3,3991.2,4.0352]
[1761690333379,0.7933,3990.9,3990.8,3.9691]
[1761690333575,0.7933,3990.9,3990.8,7.7891]
[1761690333780,0.3322,3991.3,3991.0,0.1345]
[1761690333982,0.5593,3991.4,3991.3,0.4324]
[1761690334189,1.38838907,3991.4,3991.3,0.7613]
[1761690334389,1.38838907,3991.4,3991.3,0.4324]
[1761690334589,0.7933,3991.2,3991.1,4.3631]
[1761690335090,0.7933,3991.2,3991.1,4.5813]
[1761690335988,0.5593,3991.2,3991.1,4.5813]
[1761690340692,0.56671262,3991.5,3991.4,0.7733]
[1761690340991,0.79291262,3991.5,3991.4,0.7733]
[1761690342491,0.79291262,3991.5,3991.4,3.9811]
[1761690342694,0.56671262,3991.5,3991.4,3.9811]
[1761690342887,0.23571262,3991.5,3991.4,7.8001]
[1761690343590,0.56671262,3991.5,3991.4,7.8001]
[1761690344791,0.00221262,3991.5,3991.4,7.8001]
[1761690345187,0.56671262,3991.5,3991.4,7.8001]
[1761690345985,0.79291262,3991.5,3991.4,7.8001]
[1761690346596,0.56671262,3991.5,3991.4,7.8001]
[1761690346794,0.23571262,3991.5,3991.4,7.8001]
[1761690347096,0.56671262,3991.5,3991.4,7.8001]
[1761690347394,0.00221262,3991.5,3991.4,8.25104]
[1761690347584,0.4597,3991.1,3991.0,3.2078]
[1761690347785,0.9309,3990.5,3990.4,0.00261146]
[1761690347991,0.1402,3991.0,3990.4,0.00261146]
[1761690347992,0.5999,3991.0,3990.9,0.7733]
[1761690348292,0.4597,3990.6,3990.5,0.2161]
[1761690348491,0.7907,3990.6,3990.5,0.2161]
[1761690350201,0.60056665,3990.6,3990.5,3.819]
[1761690350397,1.06026665,3990.6,3990.5,3.819]
[1761690350696,1.39126665,3990.6,3990.5,3.819]
[1761690351097,0.9309,3990.5,3990.4,0.00261146]
[1761690351288,0.9309,3990.5,3990.4,3.82161146]
[1761690352292,0.9309,3990.5,3990.4,4.03771146]
[1761690352494,0.2335,3989.5,3989.4,0.5588]
[1761690352699,0.9309,3989.5,3989.4,3.9811]
[1761690352895,0.2335,3989.9,3989.8,0.5572]
[1761690353198,0.2335,3989.9,3989.8,0.7733]
[1761690353403,0.5645,3989.9,3989.8,0.7733]
[1761690353592,0.7907,3989.9,3989.8,0.77604024]
[1761690353798,0.331,3989.9,3989.8,0.77604024]
[1761690354000,3.6675,3990.3,3990.2,0.7733]
[1761690354696,3.9985,3990.3,3990.2,0.7733]
[1761690355396,0.331,3990.7,3990.5,0.3427]
[1761690355601,0.7907,3990.6,3990.5,0.7733]
[1761690357204,0.5645,3990.6,3990.5,0.7733]
[1761690357403,0.5645,3990.6,3990.5,0.4306]
[1761690357404,0.7907,3990.6,3990.5,0.4306]
[1761690357703,0.7907,3990.3,3990.2,0.2161]
[1761690358204,0.7907,3990.3,3990.2,0.4306]
[1761690358700,0.7907,3990.3,3990.1,3.819]
[1761690358898,0.7907,3990.3,3989.9,0.3427]
[1761690358899,0.7907,3989.9,3989.8,0.21884024]
[1761690359303,0.7907,3989.9,3989.8,0.43334024]
[1761690359701,0.7907,3989.9,3989.8,0.77604024]
[1761690360200,0.7907,3989.9,3989.8,0.43334024]
[1761690361299,0.7907,3989.9,3989.8,0.00274024]
[1761690362198,0.7907,3989.9,3989.8,0.43334024]
[1761690362395,0.7907,3989.9,3989.8,0.77604024]
[1761690363203,0.7907,3989.9,3989.8,0.00274024]
[1761690363803,0.7907,3989.9,3989.8,0.77604024]
[1761690364308,0.5645,3989.9,3989.8,0.77604024]
[1761690364812,0.7907,3989.9,3989.8,0.21884024]
[1761690365709,0.7907,3989.9,3989.8,0.00274024]
[1761690365911,3.765,3989.9,3989.2,3.2078]
[1761690366213,0.7907,3988.9,3988.8,3.6384]
[1761690366410,0.7907,3988.9,3988.8,7.8001]
[1761690366911,0.7907,3988.9,3988.8,3.6384]
[1761690367213,0.4597,3988.9,3988.8,0.0027693]
[1761690367405,0.4597,3988.9,3988.8,0.4333693]
[1761690367608,0.7907,3988.9,3988.8,0.7760693]
[1761690368498,0.2335,3988.5,3988.4,3.11351851]
[1761690368703,0.3737,3987.0,3986.9,0.2161]
[1761690368915,0.3737,3987.0,3986.9,0.4306]
[1761690368916,0.9309,3987.0,3986.9,0.4306]
[1761690369104,3.2078,3987.8,3986.5,4.2538]
[1761690369105,3.4213,3987.8,3987.7,0.7641]
[1761690369303,3.6546,3987.8,3987.7,0.4428]
[1761690369603,3.99268251,3987.8,3987.7,0.44580147]
[1761690369800,3.99268251,3987.8,3987.7,0.22100147]
[1761690370414,3.99268251,3987.8,3987.7,0.00300147]
[1761690371415,3.99268251,3987.8,3987.7,0.23620147]
[1761690371706,3.99268251,3987.8,3987.7,0.00300147]
[1761690371912,3.99268251,3987.8,3987.7,0.23620147]
[1761690372104,0.55158251,3987.8,3987.7,0.79630147]
[1761690372312,0.00188251,3987.8,3987.7,0.79630147]
[1761690372611,0.56968251,3987.8,3987.7,0.79630147]
[1761690372812,0.00188251,3987.8,3987.7,0.79630147]
[1761690373008,0.79098251,3987.8,3987.7,0.79630147]
[1761690373214,0.79098251,3987.8,3987.7,3.82300147]
[1761690374613,0.56968251,3987.8,3987.7,4.61630147]
[1761690375122,0.56968251,3987.8,3987.7,4.28280147]
[1761690375123,0.79098251,3987.8,3987.7,4.28280147]
[1761690375611,0.00188251,3987.8,3987.7,0.79630147]
[1761690378214,0.56968251,3987.8,3987.7,4.61730147]
[1761690378615,0.00188251,3987.8,3987.7,4.61730147]
[1761690380524,0.00188251,3987.8,3987.7,5.06865147]
[1761690380715,0.3712,3989.0,3988.9,0.7933]
[1761690381026,0.2316,3989.0,3988.9,0.7933]
[1761690381318,0.5678,3989.0,3988.9,0.7933]
[1761690381723,0.56981589,3989.0,3988.9,0.7933]
[1761690384337,0.92761589,3989.0,3988.9,0.4598]
[1761690384726,0.92761589,3989.0,3988.9,0.2332]
[1761690385935,0.4529,3988.6,3988.5,0.2332]
[1761690386236,0.4529,3988.2,3988.1,0.7933]
[1761690386433,0.2316,3988.2,3988.1,4.1663]
[1761690386935,0.5678,3988.4,3988.3,0.7933]
[1761690387441,0.7891,3988.4,3988.3,0.7933]
[1761690387632,0.7891,3988.4,3988.3,0.4598]
[1761690388632,0.7891,3988.1,3988.0,0.2332]
[1761690388831,0.7891,3988.1,3988.0,4.0542]
[1761690390826,0.7891,3988.1,3988.0,4.6143]
[1761690391029,0.5678,3988.1,3988.0,4.6143]
[1761690392238,0.2316,3988.5,3988.4,0.7933]
[1761690392640,0.84138027,3988.5,3988.4,0.7933]
[1761690393040,0.84138027,3988.5,3988.4,4.6143]
[1761690393634,1.17758027,3988.5,3988.4,4.6143]
[1761690393834,1.53538027,3988.5,3988.4,4.6143]
[1761690394037,0.9256,3988.5,3988.4,4.6143]
[1761690395340,0.7891,3988.5,3988.4,4.6143]
[1761690395736,0.5678,3988.5,3988.4,4.6143]
[1761690396040,3.4394,3988.8,3988.7,0.7933]
[1761690396237,0.4529,3988.4,3987.9,3.2078]
[1761690396545,0.4529,3988.4,3987.7,0.00300147]
[1761690396546,0.7891,3987.8,3987.7,0.00300147]
[1761690396750,4.60736508,3987.8,3987.7,0.00300147]
[1761690397538,0.7891,3986.7,3986.6,0.3886]
[1761690397742,0.7891,3986.7,3986.6,2.709]
[1761690398043,0.7891,3986.7,3986.6,2.9033]
[1761690398246,0.7891,3986.7,3986.6,0.1943]
[1761690398438,0.7891,3986.7,3986.6,0.19715382]
[1761690398637,0.7891,3986.7,3986.6,3.82685382]
[1761690398945,0.7891,3986.7,3986.6,0.00285382]
[1761690400933,1.39989621,3986.7,3986.6,0.00285382]
[1761690401348,0.7891,3986.7,3986.6,0.00285382]
[1761690408747,0.1365,3987.0,3986.9,0.389]
[1761690408952,0.5739,3987.0,3986.9,0.389]
[1761690409451,0.9153,3987.0,3986.9,4.213]
[1761690411147,0.3414,3987.0,3986.9,4.4075]
[1761690411348,0.3414,3987.0,3986.9,7.6153]
[1761690411549,0.3414,3987.0,3986.9,7.6143]
[1761690411849,0.4729,3987.0,3986.9,7.6143]
[1761690412049,0.6938,3987.0,3986.9,7.6143]
[1761690412246,0.6938,3987.0,3986.9,7.4198]
[1761690412850,0.6938,3987.0,3986.9,7.6143]
[1761690413054,0.4729,3987.0,3986.9,7.6143]
[1761690414952,0.6938,3987.0,3986.9,7.4198]
[1761690415152,0.9103,3987.0,3986.9,7.4198]
[1761690418258,0.9103,3987.0,3986.9,7.4188]
[1761690420459,0.6938,3987.0,3986.9,7.6133]
[1761690420652,0.6938,3987.0,3986.9,7.4188]
[1761690421056,0.9103,3987.0,3986.9,7.4188]
[1761690422158,0.9103,3987.0,3986.9,4.211]
[1761690423562,0.9103,3987.0,3986.9,4.0165]
[1761690423970,0.9103,3987.0,3986.9,4.211]
[1761690437863,0.9103,3987.0,3986.7,3.2078]
[1761690438171,0.7786,3986.7,3986.6,0.00285382]
[1761690438359,0.7786,3986.7,3986.2,3.822]
[1761690438360,0.7786,3986.3,3986.2,3.822]
[1761690438561,1.39051328,3986.3,3986.2,3.822]
[1761690439369,0.7786,3986.1,3986.0,4.0161]
[1761690439586,0.1325,3985.5,3985.4,0.3882]
[1761690439773,0.3658,3985.5,3985.4,0.39074706]
[1761690439968,0.3658,3985.5,3985.4,4.21274706]
[1761690440166,0.6893,3985.5,3985.4,4.21274706]
[1761690440460,0.9111,3985.5,3985.4,4.21274706]
[1761690442680,0.9111,3985.5,3985.4,3.82454706]
[1761690443276,0.9111,3985.5,3985.4,4.01904706]
[1761690443779,0.9111,3985.5,3985.4,4.21354706]
[1761690448174,0.9111,3985.5,3985.4,4.01904706]
[1761690448976,0.9111,3985.5,3985.4,4.21354706]
[1761690450675,0.9111,3985.5,3985.4,0.00254706]
[1761690450887,0.9111,3985.5,3985.4,0.39154706]
[1761690452481,0.6893,3985.5,3985.4,0.58604706]
[1761690452682,0.5684,3986.0,3985.9,0.5835]
[1761690452872,0.5684,3986.0,3985.9,0.389]
[1761690453183,0.9114,3986.0,3985.9,0.389]
[1761690455584,0.7789,3985.7,3985.6,4.0165]
[1761690457787,0.7789,3985.7,3985.6,4.211]
[1761690467289,1.39748728,3985.7,3985.6,4.211]
[1761690469190,0.96158728,3985.7,3985.6,4.4046]
[1761690470592,0.61858728,3985.7,3985.6,4.4046]
[1761690472902,0.95708728,3985.7,3985.6,4.4046]
[1761690476198,0.61858728,3985.7,3985.6,4.4046]
[1761690477405,0.95708728,3985.7,3985.6,4.4046]
[1761690480704,0.26438728,3985.7,3985.6,4.4046]
[1761690480911,0.1305,3986.0,3985.6,3.822]
[1761690481113,0.3385,3985.9,3985.7,3.2078]
[1761690484732,0.1305,3986.0,3985.8,0.45157]
[1761690484929,0.0021359,3986.1,3985.9,3.82]
[1761690485425,0.0021359,3986.1,3986.0,0.45155]
[1761690486226,0.0021359,3986.1,3985.9,4.27155]
[1761690488727,0.1305,3986.0,3985.7,3.2078]
[1761690488933,0.5733,3985.8,3985.7,3.2078]
[1761690489228,0.3385,3985.8,3985.7,7.0278]
[1761690490731,0.5711,3985.8,3985.7,7.0278]
[1761690491931,0.3385,3985.8,3985.7,7.0278]
[1761690492528,0.3385,3985.8,3985.7,3.82]
[1761690493230,0.793,3985.7,3985.6,3.2078]
[1761690493426,0.793,3985.7,3985.6,7.0268]
[1761690495629,3.3383,3986.5,3985.6,7.0268]
[1761690495630,0.3396,3986.3,3985.6,7.0268]
[1761690495827,0.3396,3986.9,3986.1,3.2078]
[1761690496027,0.3396,3986.9,3986.8,3.2078]
[1761690496232,0.3396,3986.9,3986.8,7.0268]
[1761690496638,0.34229978,3986.9,3986.8,7.0268]
[1761690501139,0.00269978,3986.9,3986.8,7.0268]
[1761690501345,0.133,3987.5,3986.8,7.0268]
[1761690501540,3.2078,3988.2,3987.4,3.2078]
[1761690501736,0.137,3988.5,3987.8,3.2078]
[1761690502041,0.137,3988.5,3987.9,3.819]
[1761690502442,0.13876063,3988.0,3987.9,3.819]
[1761690503437,0.47836063,3988.0,3987.9,3.819]
[1761690504248,0.00176063,3988.0,3987.9,3.819]
[1761690505841,0.00176063,3988.0,3987.9,3.8942]
[1761690506843,0.3396,3988.8,3988.0,1.1283]
[1761690507147,0.137,3989.0,3988.8,0.45122]
[1761690507349,0.3396,3989.2,3988.9,4.26921]
[1761690507648,0.3396,3989.2,3989.1,3.2078]
[1761690507849,0.34217966,3989.2,3989.1,3.21043742]
[1761690509243,0.57407966,3989.2,3989.1,7.02743742]
[1761690511151,0.34217966,3989.2,3989.1,7.02743742]
[1761690511648,0.34217966,3989.2,3989.1,3.21043742]
[1761690511849,0.34217966,3989.2,3989.1,7.02743742]
[1761690512945,0.57407966,3989.2,3989.1,7.02743742]
[1761690515149,0.57407966,3989.2,3989.1,7.02643742]
[1761690516558,0.79557966,3989.2,3989.1,7.02643742]
[1761690518258,0.57407966,3989.2,3989.1,7.02643742]
[1761690518758,0.79557966,3989.2,3989.1,7.02643742]
[1761690524560,0.34217966,3989.2,3989.1,7.02643742]
[1761690525668,0.34217966,3989.2,3989.1,7.47762742]
[1761690525869,0.00257966,3989.2,3989.1,7.47762742]
[1761690526074,0.3457,3989.8,3989.7,0.45113]
[1761690526274,0.3457,3989.8,3989.7,7.47393]
[1761690526673,0.3457,3989.8,3989.7,7.0228]
[1761690527068,0.34808332,3989.8,3989.7,7.0228]
[1761690530875,0.58138332,3989.8,3989.7,7.0228]
[1761690533074,0.34808332,3989.8,3989.7,7.0228]
[1761690533278,0.133,3989.5,3989.3,3.2078]
[1761690533481,0.579,3989.4,3989.3,3.2078]
[1761690533677,0.579,3989.4,3989.3,7.0218]
[1761690533977,0.3457,3989.4,3989.3,7.0218]
[1761690534381,0.3457,3989.4,3989.3,7.47297]
[1761690535080,0.3457,3989.4,3989.3,7.0218]
[1761690535277,0.34808332,3989.8,3989.4,0.45116]
[1761690535584,0.34808332,3989.8,3989.7,3.2078]
[1761690535784,0.58138332,3989.8,3989.7,7.0218]
[1761690536178,0.3457,3989.4,3989.3,3.2078]
[1761690536480,0.3457,3989.4,3989.3,7.0218]
[1761690537084,0.579,3989.4,3989.3,3.2078]
[1761690537278,0.579,3989.4,3989.3,7.0208]
[1761690537473,0.3457,3989.4,3989.3,7.0208]
[1761690538485,0.3457,3989.4,3989.3,7.47197]
[1761690539789,0.3457,3989.7,3989.6,0.45114]
[1761690539982,0.3457,3989.7,3989.6,4.26414]
[1761690540182,0.3457,3989.7,3989.6,3.813]
[1761690541281,0.00238332,3989.8,3989.6,4.26413]
[1761690541582,0.80978332,3989.8,3989.7,3.2078]
[1761690541782,0.80978332,3989.8,3989.7,7.0208]
[1761690542182,0.00238332,3989.8,3989.7,7.47193]
[1761690542387,0.3457,3990.8,3990.0,1.12774]
[1761690542577,0.133,3992.0,3991.9,0.0348]
[1761690542578,1.02591093,3992.0,3991.9,0.0348]
[1761690542887,0.3663,3992.0,3991.9,3.8478]
[1761690543384,0.00308509,3992.0,3991.9,3.86829713]
[1761690544481,0.022,3992.8,3991.9,3.86829713]
[1761690544482,0.022,3992.8,3992.7,0.0491]
[1761690544793,0.022,3992.8,3992.7,3.8621]
[1761690545484,0.02384885,3992.8,3992.7,3.8621]
[1761690545688,0.60284885,3992.8,3992.7,3.8478]
[1761690545883,0.60284885,3992.8,3992.7,0.0348]
[1761690546078,0.83124885,3992.8,3992.7,0.0348]
[1761690546280,0.83124885,3992.8,3992.7,3.8468]
[1761690546886,0.60284885,3992.8,3992.7,3.8468]
[1761690548691,0.36954885,3992.8,3992.7,3.8612]
[1761690549091,0.02384885,3992.8,3992.7,3.8612]
[1761690549291,0.36744885,3992.8,3992.7,3.8468]
[1761690549492,0.58344885,3992.8,3992.7,3.8468]
[1761690550489,0.81364885,3992.8,3992.7,3.8284]
[1761690550694,0.81364885,3992.8,3992.7,3.8428]
[1761690551988,0.59764885,3992.8,3992.7,3.8428]
[1761690552292,0.36744885,3992.8,3992.7,3.8572]
[1761690554095,0.36744885,3992.8,3991.9,0.00309713]
[1761690554096,0.9362,3992.0,3991.9,0.00309713]
[1761690554394,0.9362,3992.0,3991.4,0.02045837]
[1761690554395,0.9362,3991.5,3991.4,0.02045837]
[1761690554695,0.7054,3991.5,3991.4,0.04925837]
[1761690555082,0.9362,3991.5,3991.4,3.83745837]
[1761690555283,4.144,3991.5,3991.4,0.02275056]
[1761690555596,4.144,3991.5,3991.4,3.23475056]
[1761690556294,4.144,3991.5,3991.4,0.02275056]
[1761690556593,0.9362,3991.5,3991.4,0.03715056]
[1761690556895,0.7054,3991.5,3991.4,0.05155056]
[1761690558588,0.4828,3991.5,3991.4,0.05155056]
[1761690558988,0.3449,3991.9,3991.4,3.85415056]
[1761690559194,0.5675,3991.9,3991.8,0.0288]
[1761690559390,0.5675,3991.9,3991.8,3.8458]
[1761690559697,0.7983,3991.9,3991.8,3.8458]
[1761690561294,0.1379,3992.5,3992.2,0.0432]
[1761690561494,0.1379,3992.5,3992.4,0.0288]
[1761690561995,0.4828,3992.5,3992.4,0.0288]
[1761690562192,0.7054,3992.5,3992.4,0.0288]
[1761690562395,0.36874885,3992.8,3992.7,0.0288]
[1761690562592,0.36874885,3992.8,3992.7,3.8468]
[1761690562789,0.59134885,3992.8,3992.7,3.8468]
[1761690562990,0.82214885,3992.8,3992.7,3.8468]
[1761690563186,0.7983,3992.2,3991.6,3.2078]
[1761690563391,0.9362,3991.5,3991.4,0.02275056]
[1761690563593,0.9362,3991.5,3991.4,0.05155056]
[1761690563797,0.4828,3991.5,3991.4,0.06595056]
[1761690563994,0.3605,3992.0,3991.9,0.0144]
[1761690564199,0.1379,3992.0,3991.9,3.8608]
[1761690564595,0.4828,3992.0,3991.9,3.8608]
[1761690564798,0.4828,3992.0,3991.9,3.8752]
[1761690565490,0.3449,3992.3,3992.2,0.0144]
[1761690565697,0.3449,3992.3,3992.2,3.8618]
[1761690566195,0.5675,3992.3,3992.2,3.8618]
[1761690566797,0.7983,3992.3,3992.2,3.8618]
[1761690567591,0.02384885,3992.8,3992.7,0.0288]
[1761690567794,0.47724885,3992.8,3992.7,3.8598]
[1761690568201,0.02384885,3992.8,3992.7,3.8742]
[1761690568502,3.6906,3993.5,3993.4,0.0288]
[1761690568503,0.3605,3993.5,3993.4,0.0288]
[1761690568803,0.4828,3994.0,3993.9,0.0288]
[1761690569007,0.4828,3994.0,3993.9,3.8658]
[1761690569307,0.00662123,3994.1,3994.0,0.0432]
[1761690569601,0.00938151,3994.1,3994.0,0.0432]
[1761690569799,0.35428151,3994.1,3994.0,0.0432]
[1761690570199,0.57688151,3994.1,3994.0,3.8658]
[1761690570405,0.80768151,3994.1,3994.0,3.8658]
[1761690570701,0.35428151,3994.1,3994.0,3.8802]
[1761690571097,0.00938151,3994.1,3994.0,3.8802]
[1761690571294,0.35428151,3994.1,3994.0,3.8658]
[1761690571903,0.35428151,3994.1,3994.0,0.0288]
[1761690572200,0.35428151,3994.1,3994.0,3.8648]
[1761690573101,0.35428151,3994.1,3994.0,0.0288]
[1761690573296,0.35428151,3994.1,3994.0,3.8648]
[1761690573497,0.57688151,3994.1,3994.0,3.8638]
[1761690573704,0.80768151,3994.1,3994.0,3.8638]
[1761690574095,0.80768151,3994.1,3994.0,0.0288]
[1761690574296,0.80768151,3994.1,3994.0,3.8638]
[1761690574904,0.7983,3993.4,3993.3,0.0144]
[1761690575094,0.7983,3993.4,3993.3,3.8494]
[1761690575907,0.7983,3993.4,3993.3,3.8638]
[1761690576496,0.7983,3993.4,3992.8,0.0144]
[1761690576701,0.5913,3993.0,3992.3,3.2222]
[1761690576999,0.5913,3993.0,3991.3,1.12738]
[1761690577000,0.1379,3993.5,3993.4,0.0288]
[1761690577200,0.4828,3993.5,3993.4,3.8638]
[1761690577400,0.7054,3993.5,3993.4,3.8638]
[1761690577596,0.9362,3993.5,3993.4,3.8638]
[1761690578204,0.9362,3993.5,3993.4,0.0288]
[1761690578503,0.3605,3993.0,3992.9,0.0288]
[1761690578709,0.1379,3993.5,3993.4,0.0288]
[1761690578910,0.4828,3993.5,3993.4,3.8638]
[1761690579410,0.4828,3993.5,3993.4,3.8782]
[1761690579608,0.4828,3993.5,3993.4,3.8638]
[1761690579806,0.7054,3993.5,3993.4,3.8638]
[1761690581209,0.3518,3993.4,3992.7,3.2078]
[1761690581410,0.3573,3993.0,3992.9,0.0286]
[1761690581810,0.7091,3993.0,3992.9,3.8636]
[1761690582007,0.4897,3993.5,3993.4,0.0286]
[1761690582198,0.7184,3993.5,3993.4,3.8636]
[1761690583311,0.4897,3993.5,3993.4,3.8779]
[1761690583607,0.4897,3993.5,3993.4,3.91901625]
[1761690583914,0.3518,3993.8,3993.7,0.0143]
[1761690584108,0.3518,3993.8,3993.7,0.0286]
[1761690584612,0.5805,3993.8,3993.7,0.0286]
[1761690584808,0.5805,3993.8,3993.7,0.06971625]
[1761690585012,0.1379,3994.0,3993.7,0.06971625]
[1761690585013,0.4897,3994.0,3993.9,0.0429]
[1761690585210,0.00938151,3994.1,3994.0,0.0429]
[1761690585813,0.00938151,3994.1,3994.0,0.08401625]
[1761690586622,0.36118151,3994.1,3994.0,0.08401625]
[1761690586808,0.36118151,3994.1,3994.0,0.06971625]
[1761690587112,0.36118151,3994.1,3994.0,0.08401625]
[1761690587414,0.36118151,3994.1,3994.0,0.06971625]
[1761690588918,0.36118151,3994.1,3994.0,0.08401625]
[1761690589319,0.00938151,3994.1,3994.0,0.08401625]
[1761690589623,0.00938151,3994.1,3994.0,0.15921625]
[1761690589819,0.00938151,3994.1,3994.0,0.53465625]
[1761690591312,0.36118151,3994.1,3994.0,0.53465625]
[1761690591513,0.00938151,3994.1,3994.0,0.53465625]
[1761690594719,0.00938151,3994.1,3994.0,0.60985625]
[1761690595612,0.00938151,3994.1,3994.0,0.53465625]
[1761690595812,0.00938151,3994.1,3994.0,0.60985625]
[1761690596117,0.00938151,3994.1,3994.0,0.73639149]
[1761690596311,0.00745078,3994.7,3994.6,0.49348]
[1761690596518,0.00745078,3994.7,3994.6,7.53028]
[1761690596816,0.35925078,3994.7,3994.6,7.57139625]
[1761690597015,0.82235078,3994.7,3994.6,7.10651625]
[1761690597217,0.82235078,3994.7,3994.6,7.59139288]
[1761690597417,0.82235078,3994.7,3994.6,7.1416871]
[1761690597418,0.82525645,3994.7,3994.6,7.1416871]
[1761690597620,0.82525645,3994.7,3994.6,7.5922671]
[1761690600313,0.82525645,3994.7,3994.6,7.1120871]
[1761690600620,0.82525645,3994.7,3994.6,7.5912671]
[1761690600822,0.36215645,3994.7,3994.6,7.6055671]
[1761690601313,0.82525645,3994.7,3994.6,3.3136871]
[1761690601514,0.82525645,3994.7,3994.6,3.2850871]
[1761690601912,0.82525645,3994.7,3994.6,7.1313871]
[1761690602114,0.82525645,3994.7,3994.6,7.1456871]
[1761690602414,0.36215645,3994.7,3994.6,7.1456871]
[1761690602611,0.59085645,3994.7,3994.6,7.1456871]
[1761690602912,0.82525645,3994.7,3994.6,7.1456871]
[1761690603817,0.82525645,3994.7,3994.6,7.1170871]
[1761690604122,0.82525645,3994.7,3994.6,3.9152871]
[1761690605321,0.82525645,3994.7,3994.6,0.0772871]
[1761690605821,0.8149,3993.8,3993.7,3.2078]
[1761690606016,0.8149,3993.8,3993.7,7.0468]
[1761690606218,0.8149,3993.8,3993.7,7.0611]
[1761690606424,0.8149,3993.8,3993.7,7.0754]
[1761690606720,0.5805,3993.8,3993.7,7.07789122]
[1761690607015,0.3518,3993.8,3993.7,7.09219122]
[1761690607421,0.3518,3993.8,3993.7,7.07789122]
[1761690607918,0.8149,3993.8,3993.7,3.21029122]
[1761690608119,0.8149,3993.8,3993.7,7.05029122]
[1761690608719,0.9066,3993.0,3992.9,3.2078]
[1761690608914,0.9066,3993.0,3992.9,7.0808]
[1761690609114,0.3341,3993.4,3993.3,0.034]
[1761690609417,0.7719,3993.4,3993.3,3.856]
[1761690609617,0.7719,3993.4,3993.3,3.839]
[1761690609820,0.7719,3993.4,3993.3,3.84076463]
[1761690610712,0.7719,3993.4,3993.3,0.00176463]
[1761690610921,0.7719,3993.4,3993.3,3.84076463]
[1761690611621,8.7719,3993.4,3993.3,0.00176463]
[1761690611825,0.7719,3993.4,3993.3,0.00176463]
[1761690615926,0.1386,3992.5,3992.4,0.50182]
[1761690616126,0.3577,3993.0,3992.9,0.034]
[1761690616326,0.1386,3993.0,3992.9,7.54657]
[1761690616524,0.686,3993.5,3993.4,0.034]
[1761690616724,0.686,3993.5,3993.4,3.87472793]
[1761690616927,0.9199,3993.5,3993.4,3.84072793]
[1761690617413,0.9199,3993.5,3993.4,3.85772793]
[1761690619928,0.9199,3993.5,3993.4,3.87472793]
[1761690621225,0.4669,3993.5,3993.4,3.87472793]
[1761690621526,0.3322,3993.5,3993.4,7.55023793]
[1761690621725,0.3477,3994.0,3993.9,0.034]
[1761690621927,0.3477,3994.0,3993.9,3.872]
[1761690622226,0.6799,3994.0,3993.9,3.872]
[1761690622629,0.4608,3994.0,3993.9,3.872]
[1761690622925,0.6799,3994.0,3993.9,3.872]
[1761690623322,0.9138,3994.0,3993.9,3.872]
[1761690623520,0.9238,3993.5,3993.4,0.01972793]
[1761690623729,0.9238,3993.5,3993.4,3.87572793]
[1761690624422,0.4708,3993.5,3993.4,3.87572793]
[1761690624627,0.6899,3993.5,3993.4,3.87572793]
[1761690624826,0.9238,3993.5,3993.4,3.87572793]
[1761690626321,0.9238,3993.5,3993.4,0.03672793]
[1761690626521,0.9238,3993.5,3993.4,3.87472793]
[1761690628333,0.4708,3993.5,3993.4,3.89172793]
[1761690628926,0.4708,3993.5,3993.4,3.87472793]
[1761690629431,0.1286,3994.0,3993.4,3.89172793]
[1761690629631,3.2078,3994.8,3994.6,0.034]
[1761690629835,3.2078,3995.2,3994.6,3.888]
[1761690630130,3.2078,3995.2,3994.6,3.871]
[1761690630131,0.34255645,3994.7,3994.6,3.871]
[1761690630521,0.56165645,3994.7,3994.6,3.871]
[1761690630732,0.79555645,3994.7,3994.6,3.871]
[1761690631033,0.7852,3994.6,3994.5,3.2078]
[1761690631332,0.7852,3994.6,3994.5,7.0458]
[1761690631732,0.7852,3994.6,3994.5,3.2078]
[1761690631929,0.3577,3994.5,3994.4,0.034]
[1761690632129,0.3577,3994.5,3994.4,3.871]
[1761690632329,0.6899,3994.5,3994.4,3.871]
[1761690633138,0.34255645,3994.7,3994.6,0.051]
[1761690633332,0.34255645,3994.7,3994.6,0.034]
[1761690633529,0.34255645,3994.7,3994.6,0.051]
[1761690634138,0.34255645,3994.7,3994.6,0.034]
[1761690634535,0.34255645,3994.7,3994.6,3.2418]
[1761690635135,0.01035645,3994.7,3994.6,3.2588]
[1761690639239,0.01035645,3994.7,3994.6,3.334]
[1761690639435,0.3322,3995.7,3995.6,0.0134]
[1761690639745,0.3322,3995.7,3995.6,3.8474]
[1761690640544,0.33501308,3995.7,3995.6,3.8539]
[1761690640741,0.7819,3995.6,3995.1,3.2078]
[1761690640946,0.7819,3995.2,3995.1,3.2208]
[1761690641147,0.7819,3995.2,3995.1,7.0588]
[1761690641846,0.5462,3995.2,3995.1,7.0588]
[1761690642254,0.5462,3995.2,3995.1,3.2208]
[1761690642553,0.7819,3995.2,3995.1,3.2143]
[1761690642760,0.7819,3994.8,3994.7,3.2208]
[1761690642946,0.5462,3994.8,3994.7,7.0578]
[1761690643148,0.1351,3995.5,3995.4,0.0065]
[1761690643453,0.3564,3995.5,3995.4,3.849]
[1761690643855,0.6813,3995.5,3995.4,3.849]
[1761690645455,0.917,3995.5,3995.4,3.849]
[1761690646850,0.6813,3995.5,3995.4,3.849]
[1761690647945,0.46,3995.5,3995.4,3.849]
[1761690648651,0.32771308,3995.7,3995.6,0.0195]
[1761690648853,0.32771308,3995.7,3995.6,3.2273]